bitfinex/quotes_BTCUSD_20250313
["timestamp","ask_amount","ask_price","bid_price","bid_amount"]
[1741834524116,0.249785,84072.0,84071.0,0.0003007]
[1741834524295,0.011894,84075.0,84071.0,0.0003007]
[1741834524296,0.249779,84074.0,84071.0,0.0003007]
[1741834524730,0.4335394,84078.0,84071.0,0.0003007]
[1741834524901,0.4335394,84078.0,84072.0,0.0075133]
[1741834525104,0.4285394,84078.0,84072.0,0.0075133]
[1741834525488,0.001,84073.0,84072.0,0.0184073]
[1741834525697,0.001,84073.0,84072.0,0.02018521]
[1741834527453,0.002,84073.0,84072.0,0.02018521]
[1741834532100,0.001,84073.0,84072.0,0.14698521]
[1741834532299,0.001,84073.0,84072.0,0.14817451]
[1741834532967,0.001,84073.0,84072.0,0.2681167]
[1741834533263,0.001,84073.0,84072.0,0.2669274]
[1741834533441,0.001,84073.0,84072.0,0.2907932]
[1741834533790,0.001,84073.0,84072.0,1.64698521]
[1741834533944,0.001,84073.0,84072.0,0.15710521]
[1741834534412,0.001,84073.0,84072.0,1.65710521]
[1741834536590,0.001,84073.0,84072.0,0.15710521]
[1741834536798,0.0196357,84073.0,84072.0,0.15710521]
[1741834538215,0.0196357,84073.0,84072.0,0.15727481]
[1741834538570,0.0199749,84073.0,84072.0,0.15727481]
[1741834542104,0.0199749,84073.0,84072.0,0.15846418]
[1741834542280,0.0199749,84073.0,84072.0,1.65727481]
[1741834544182,0.0199749,84073.0,84072.0,1.73857481]
[1741834544361,0.0199749,84073.0,84072.0,1.858517]
[1741834545001,0.0013392,84073.0,84072.0,1.858517]
[1741834548142,2e-07,84073.0,84072.0,1.858517]
[1741834548455,2e-07,84073.0,84072.0,1.863285]
[1741834549446,2e-07,84073.0,84072.0,1.866285]
[1741834551578,0.0010002,84073.0,84072.0,1.872285]
[1741834554009,2e-07,84073.0,84072.0,1.872285]
[1741834555166,1e-08,84081.0,84080.0,0.091593]
[1741834555339,0.0003394,84082.0,84081.0,0.249758]
[1741834555483,0.0003394,84082.0,84081.0,0.36970019]
[1741834555682,0.0003394,84082.0,84081.0,1.87798063]
[1741834556510,8e-07,84084.0,84083.0,0.010893]
[1741834556711,7.4e-07,84087.0,84086.0,0.260992]
[1741834556926,7.4e-07,84087.0,84086.0,0.63543705]
[1741834557128,7.4e-07,84087.0,84086.0,2.14371076]
[1741834558000,7.4e-07,84087.0,84086.0,2.1065879]
[1741834559221,7.4e-07,84087.0,84086.0,2.1135879]
[1741834559582,0.00100074,84087.0,84086.0,2.8747079]
[1741834560225,0.00100074,84087.0,84086.0,2.89803669]
[1741834565075,0.00100074,84087.0,84086.0,2.91666669]
[1741834566094,0.00100074,84087.0,84086.0,0.9484545]
[1741834566318,0.08390074,84087.0,84086.0,0.77639371]
[1741834566521,0.08390074,84087.0,84086.0,0.78828571]
[1741834566862,0.08490074,84087.0,84086.0,0.78828571]
[1741834567054,0.08490074,84087.0,84086.0,0.77639371]
[1741834567576,0.08490074,84087.0,84086.0,0.78128571]
[1741834567902,0.08490074,84087.0,84086.0,0.78828571]
[1741834568211,0.00100074,84087.0,84086.0,0.78828571]
[1741834568422,0.00100074,84087.0,84086.0,0.9082279]
[1741834568628,0.001,84105.0,84095.0,0.011891]
[1741834568827,0.001,84105.0,84095.0,0.25797859]
[1741834569026,0.001,84105.0,84095.0,1.75797859]
[1741834569263,0.001,84105.0,84095.0,1.76966265]
[1741834569871,0.001,84105.0,84095.0,1.77066265]
[1741834570244,0.001,84105.0,84095.0,1.76966265]
[1741834570466,0.01963116,84105.0,84095.0,1.77366265]
[1741834570700,0.01963116,84105.0,84095.0,1.78066265]
[1741834571033,0.237809,84101.0,84095.0,0.28066265]
[1741834571236,0.001,84099.0,84095.0,0.04283665]
[1741834572063,0.1271394,84096.0,84095.0,0.01823828]
[1741834572312,0.3778534,84096.0,84095.0,0.011]
[1741834574267,0.3778534,84096.0,84095.0,0.004]
[1741834574651,0.3778534,84096.0,84095.0,0.006]
[1741834575062,0.25074,84087.0,84086.0,0.00058628]
[1741834575264,0.38254,84087.0,84086.0,0.00058628]
[1741834576126,0.4011769,84087.0,84086.0,0.00058628]
[1741834576270,0.1583289,84087.0,84086.0,0.00258628]
[1741834576463,0.1504369,84087.0,84086.0,0.01080314]
[1741834577102,0.1623289,84087.0,84086.0,0.01080314]
[1741834577576,0.1623289,84087.0,84086.0,0.00258628]
[1741834578280,0.5712289,84087.0,84086.0,0.00258628]
[1741834579610,0.7080689,84087.0,84086.0,2.8e-07]
[1741834579810,0.135694,84073.0,84071.0,0.0004702]
[1741834579937,0.782482,84073.0,84072.0,0.00025391]
[1741834580697,0.80112245,84073.0,84072.0,0.00025391]
[1741834581223,0.80512245,84073.0,84072.0,0.00025391]
[1741834581530,0.80112245,84073.0,84072.0,0.00025391]
[1741834582813,0.80412245,84073.0,84072.0,0.00025391]
[1741834583060,0.80112245,84073.0,84072.0,0.00025391]
[1741834583454,0.80712245,84073.0,84072.0,0.00025391]
[1741834583890,0.011895,84064.0,84063.0,8e-07]
[1741834584093,0.090495,84064.0,84063.0,8.516e-05]
[1741834585611,0.237962,84047.0,84046.0,5.6e-07]
[1741834585759,0.78256,84047.0,84046.0,5.6e-07]
[1741834585964,0.78256,84047.0,84046.0,4.21e-05]
[1741834586943,0.80120718,84047.0,84046.0,4.21e-05]
[1741834587152,0.80720718,84047.0,84046.0,4.21e-05]
[1741834587358,0.80120718,84047.0,84046.0,4.21e-05]
[1741834587559,0.80720718,84047.0,84046.0,4.21e-05]
[1741834587761,0.81320718,84047.0,84046.0,4.21e-05]
[1741834588156,0.80120718,84047.0,84046.0,4.21e-05]
[1741834588351,0.80420718,84047.0,84046.0,4.21e-05]
[1741834588561,0.80620718,84047.0,84046.0,4.21e-05]
[1741834588896,0.43254718,84047.0,84046.0,4.21e-05]
[1741834589104,0.43444518,84047.0,84046.0,4.21e-05]
[1741834589974,0.43144518,84047.0,84046.0,4.21e-05]
[1741834590383,0.42944518,84047.0,84046.0,4.21e-05]
[1741834590586,0.43244518,84047.0,84046.0,4.21e-05]
[1741834591174,0.42944518,84047.0,84046.0,4.21e-05]
[1741834599105,0.42978438,84047.0,84046.0,4.21e-05]
[1741834600106,0.47928438,84047.0,84046.0,4.21e-05]
[1741834606199,0.5414372,84047.0,84046.0,4.21e-05]
[1741834607553,0.5424372,84047.0,84046.0,4.21e-05]
[1741834608050,0.5414372,84047.0,84046.0,4.21e-05]
[1741834608327,0.5464372,84047.0,84046.0,4.21e-05]
[1741834609309,0.56508541,84047.0,84046.0,4.21e-05]
[1741834610054,0.43478541,84047.0,84046.0,4.21e-05]
[1741834610786,0.43278541,84047.0,84046.0,4.21e-05]
[1741834610989,0.42978541,84047.0,84046.0,4.21e-05]
[1741834611172,0.43378541,84047.0,84046.0,4.21e-05]
[1741834611537,0.42978541,84047.0,84046.0,4.21e-05]
[1741834611935,0.43078541,84047.0,84046.0,4.21e-05]
[1741834616770,0.41888741,84047.0,84046.0,4.21e-05]
[1741834616945,0.43078541,84047.0,84046.0,4.21e-05]
[1741834617098,0.43078541,84047.0,84046.0,0.01944613]
[1741834617310,0.43078541,84047.0,84046.0,0.01200247]
[1741834618040,0.4121372,84047.0,84046.0,4.21e-05]
[1741834618284,0.4111372,84047.0,84046.0,4.21e-05]
[1741834619243,0.4121372,84047.0,84046.0,4.21e-05]
[1741834619439,0.4111372,84047.0,84046.0,4.21e-05]
[1741834619764,0.4002392,84047.0,84046.0,4.21e-05]
[1741834619966,0.0013392,84047.0,84046.0,0.0119401]
[1741834620164,0.0013392,84047.0,84046.0,0.01312974]
[1741834620549,0.0013392,84047.0,84046.0,0.8142707]
[1741834620751,0.0013392,84047.0,84046.0,0.81308106]
[1741834621230,0.0003392,84047.0,84046.0,0.81308106]
[1741834621816,0.0003392,84047.0,84046.0,0.77589083]
[1741834621995,0.0013392,84047.0,84046.0,0.77589083]
[1741834622394,0.0013392,84047.0,84046.0,2.27589083]
[1741834623947,0.0023392,84047.0,84046.0,2.27589083]
[1741834625566,0.0023392,84047.0,84046.0,0.77589083]
[1741834627664,0.0023392,84047.0,84046.0,0.89583302]
[1741834628977,0.0023392,84047.0,84046.0,0.94463302]
[1741834629210,0.0023392,84047.0,84046.0,1.02723302]
[1741834631148,0.090292,84086.0,84078.0,0.237871]
[1741834631358,0.249758,84081.0,84073.0,0.011894]
[1741834631566,0.090292,84086.0,84080.0,0.237868]
[1741834631766,0.249763,84080.0,84074.0,0.237885]
[1741834631981,0.011893,84077.0,84070.0,0.50163638]
[1741834632238,0.011893,84077.0,84071.0,0.011894]
[1741834632381,0.011893,84077.0,84071.0,0.01193554]
[1741834632597,0.011894,84073.0,84071.0,4.154e-05]
[1741834633222,0.237882,84075.0,84071.0,4.154e-05]
[1741834633491,0.011894,84076.0,84071.0,0.01193554]
[1741834634335,0.249785,84072.0,84071.0,4.154e-05]
[1741834634545,0.332285,84072.0,84071.0,4.154e-05]
[1741834635822,0.334285,84072.0,84071.0,4.154e-05]
[1741834636419,0.334285,84072.0,84071.0,0.00827859]
[1741834636628,0.334285,84072.0,84071.0,4.154e-05]
[1741834636824,0.334285,84072.0,84071.0,0.00827859]
[1741834637028,0.334285,84072.0,84071.0,4.154e-05]
[1741834637567,0.335285,84072.0,84071.0,4.154e-05]
[1741834637978,0.381585,84072.0,84071.0,4.154e-05]
[1741834639907,0.380585,84072.0,84071.0,4.154e-05]
[1741834640088,0.378585,84072.0,84071.0,4.154e-05]
[1741834640311,0.384585,84072.0,84071.0,4.154e-05]
[1741834642125,0.390585,84072.0,84071.0,4.154e-05]
[1741834645076,0.390924,84072.0,84071.0,4.154e-05]
[1741834646110,0.440924,84072.0,84071.0,4.154e-05]
[1741834646712,0.390924,84072.0,84071.0,4.154e-05]
[1741834646861,0.515804,84072.0,84071.0,4.154e-05]
[1741834647300,0.529804,84072.0,84071.0,4.154e-05]
[1741834648105,0.515804,84072.0,84071.0,4.154e-05]
[1741834648305,0.011897,84050.0,84042.0,0.01065914]
[1741834648506,0.011897,84050.0,84046.0,0.00012473]
[1741834648711,0.011897,84048.0,84046.0,0.00012473]
[1741834649117,0.011897,84050.0,84046.0,0.00012473]
[1741834649118,0.01864362,84050.0,84046.0,0.00012473]
[1741834649320,0.01864362,84050.0,84049.0,0.011897]
[1741834649519,0.01864362,84050.0,84046.0,0.00012473]
[1741834650275,0.011898,84047.0,84046.0,0.00012473]
[1741834651084,0.01964362,84050.0,84046.0,0.00012473]
[1741834651257,0.011898,84047.0,84046.0,0.00012473]
[1741834653526,0.094398,84047.0,84046.0,0.00012473]
[1741834653765,0.10544296,84047.0,84046.0,0.00012473]
[1741834654515,0.02294296,84047.0,84046.0,0.00012473]
[1741834655015,0.01104496,84047.0,84046.0,0.00012473]
[1741834655411,0.02294296,84047.0,84046.0,0.00012473]
[1741834655584,0.04502726,84047.0,84046.0,0.00012473]
[1741834655952,0.22758019,84047.0,84046.0,7.3e-07]
[1741834656172,0.327404,84032.0,84031.0,0.0008]
[1741834656372,0.011899,84038.0,84031.0,0.00089427]
[1741834656575,0.238004,84033.0,84031.0,0.00089427]
[1741834656889,0.0119,84032.0,84031.0,0.00089427]
[1741834657093,0.249904,84032.0,84031.0,0.00089427]
[1741834657948,0.26855282,84032.0,84031.0,0.00089427]
[1741834658681,0.27959778,84032.0,84031.0,0.00089427]
[1741834659149,0.30166514,84032.0,84031.0,0.00089427]
[1741834659985,0.27959778,84032.0,84031.0,0.00089427]
[1741834660616,0.36019778,84032.0,84031.0,0.00089427]
[1741834661608,0.36019778,84032.0,84031.0,2.7e-07]
[1741834662119,0.40679778,84032.0,84031.0,2.7e-07]
[1741834662534,0.38814896,84032.0,84031.0,2.7e-07]
[1741834662942,0.377104,84032.0,84031.0,2.7e-07]
[1741834665764,0.39575493,84032.0,84031.0,2.7e-07]
[1741834666167,0.40679127,84032.0,84031.0,2.7e-07]
[1741834667154,0.42885127,84032.0,84031.0,2.7e-07]
[1741834668066,0.43085127,84032.0,84031.0,2.7e-07]
[1741834669066,0.43085127,84032.0,84031.0,0.00016987]
[1741834670657,0.43385127,84032.0,84031.0,0.00016987]
[1741834671369,0.30665127,84032.0,84031.0,0.00016987]
[1741834674827,0.28459127,84032.0,84031.0,0.00016987]
[1741834674984,0.27355493,84032.0,84031.0,0.00016987]
[1741834681840,0.27389413,84032.0,84031.0,0.00016987]
[1741834683212,0.34979413,84032.0,84031.0,8.7e-07]
[1741834683427,0.3797432,84032.0,84031.0,8.7e-07]
[1741834684456,0.40388587,84032.0,84031.0,8.7e-07]
[1741834685887,0.40388587,84032.0,84008.0,0.75584]
[1741834685888,0.249972,84009.0,84008.0,0.75584]
[1741834686697,0.238065,84011.0,84008.0,0.75584]
[1741834686698,0.249967,84011.0,84008.0,0.75584]
[1741834686907,0.249956,84015.0,84008.0,0.993909]
[1741834687108,0.011902,84013.0,84008.0,0.767743]
[1741834687320,0.011902,84013.0,84008.0,0.75584]
[1741834687321,0.249964,84012.0,84008.0,0.75584]
[1741834687543,0.24997,84010.0,84008.0,0.75584]
[1741834687825,0.011903,84009.0,84008.0,0.75584]
[1741834689715,0.011903,84007.0,84002.0,0.01215165]
[1741834689870,0.249981,84006.0,84002.0,0.01215165]
[1741834690096,0.249981,84006.0,84001.0,0.0001696]
[1741834690299,0.249956,84015.0,84003.0,0.238086]
[1741834690549,0.011903,84008.0,84001.0,0.0001696]
[1741834690698,0.249975,84008.0,84001.0,0.0001696]
[1741834691104,0.011903,84007.0,84001.0,0.00058536]
[1741834691629,0.249981,84006.0,84001.0,0.00058536]
[1741834691787,0.011903,84006.0,84001.0,0.01239175]
[1741834691991,0.011903,84006.0,84001.0,0.00058536]
[1741834692188,0.249983,84006.0,84001.0,0.00058536]
[1741834692401,0.011904,84004.0,84001.0,0.00058536]
[1741834692577,0.011904,84002.0,84001.0,0.00058536]
[1741834693535,0.0305567,84002.0,84001.0,0.00058536]
[1741834694123,0.0305567,84002.0,84001.0,0.01238696]
[1741834694321,0.0305567,84002.0,84001.0,0.00058536]
[1741834694569,0.0315567,84002.0,84001.0,0.00058536]
[1741834694963,0.0325567,84002.0,84001.0,0.00058536]
[1741834696744,0.0315567,84002.0,84001.0,0.00058536]
[1741834696920,0.0325567,84002.0,84001.0,0.00058536]
[1741834697121,0.498104,84002.0,84001.0,0.00058536]
[1741834697351,0.497104,84002.0,84001.0,0.00058536]
[1741834697534,0.53027755,84002.0,84001.0,0.00058536]
[1741834697938,0.52927755,84002.0,84001.0,0.00058536]
[1741834698936,0.56565339,84002.0,84001.0,0.00058536]
[1741834699131,0.249996,84001.0,84000.0,0.0473203]
[1741834700006,0.32614067,84001.0,84000.0,0.0473203]
[1741834700271,0.73504067,84001.0,84000.0,0.0473203]
[1741834700589,0.69966483,84001.0,84000.0,0.0473203]
[1741834700993,0.71072509,84001.0,84000.0,0.0473203]
[1741834704323,0.75792509,84001.0,84000.0,0.0473203]
[1741834705629,0.75992509,84001.0,84000.0,0.0473203]
[1741834705874,0.46272909,84001.0,84000.0,0.0473203]
[1741834706046,0.47463309,84001.0,84000.0,0.0473203]
[1741834706452,0.47563309,84001.0,84000.0,0.0474899]
[1741834707242,0.55723309,84001.0,84000.0,0.0474899]
[1741834710657,0.55723309,84001.0,84000.0,0.04664709]
[1741834711005,0.55723309,84001.0,83996.0,0.0001696]
[1741834711006,0.090505,83997.0,83996.0,3.9e-07]
[1741834711204,0.299735,83988.0,83987.0,5.9e-07]
[1741834711374,0.930075,83988.0,83987.0,5.9e-07]
[1741834712163,0.96613526,83988.0,83987.0,5.9e-07]
[1741834712367,0.250061,83979.0,83978.0,1.9e-07]
[1741834712573,0.787261,83979.0,83978.0,1.9e-07]
[1741834712772,0.837261,83979.0,83978.0,1.9e-07]
[1741834712946,0.812261,83979.0,83978.0,1.9e-07]
[1741834713324,0.86596453,83979.0,83978.0,1.9e-07]
[1741834713512,0.328697,83967.0,83966.0,0.0001695]
[1741834713649,0.737597,83967.0,83966.0,0.0001695]
[1741834714057,0.75626047,83967.0,83966.0,0.0001695]
[1741834714683,0.67807672,83967.0,83966.0,0.0001695]
[1741834714918,0.42797972,83967.0,83966.0,0.0001695]
[1741834715145,0.77913102,83967.0,83966.0,0.0001695]
[1741834715536,0.51237055,83967.0,83966.0,0.0001695]
[1741834715706,0.52427955,83967.0,83966.0,0.0001695]
[1741834715904,0.51237055,83967.0,83966.0,0.0001695]
[1741834716105,0.52427955,83967.0,83966.0,0.0001695]
[1741834716510,0.50663628,83967.0,83966.0,0.0001695]
[1741834717719,0.50463628,83967.0,83966.0,0.0001695]
[1741834718295,0.48971089,83967.0,83966.0,0.0001695]
[1741834718649,0.50837348,83967.0,83966.0,0.0001695]
[1741834719278,0.58377348,83967.0,83966.0,0.0001695]
[1741834719681,0.50837348,83967.0,83966.0,0.0001695]
[1741834720054,0.50937348,83967.0,83966.0,0.0001695]
[1741834720260,0.52699374,83967.0,83966.0,0.0001695]
[1741834720472,0.52599374,83967.0,83966.0,0.0001695]
[1741834720675,0.65059374,83967.0,83966.0,5e-07]
[1741834720871,0.60239374,83967.0,83966.0,5e-07]
[1741834721441,0.60877348,83967.0,83966.0,5e-07]
[1741834721741,0.58577348,83967.0,83966.0,5e-07]
[1741834722185,0.58377348,83967.0,83966.0,5e-07]
[1741834722401,0.58677348,83967.0,83966.0,5e-07]
[1741834722959,0.58877348,83967.0,83966.0,5e-07]
[1741834724430,0.51337348,83967.0,83966.0,5e-07]
[1741834725427,0.48280189,83967.0,83966.0,5e-07]
[1741834726193,0.49471089,83967.0,83966.0,5e-07]
[1741834726394,0.46974163,83967.0,83966.0,5e-07]
[1741834726571,0.47174163,83967.0,83966.0,5e-07]
[1741834726773,0.47174163,83967.0,83966.0,0.00849361]
[1741834726978,0.47174163,83967.0,83966.0,0.2381915]
[1741834727118,0.46674163,83967.0,83966.0,5e-07]
[1741834727325,0.46674163,83967.0,83966.0,0.01204496]
[1741834727551,0.46974163,83967.0,83966.0,5e-07]
[1741834727761,0.46674163,83967.0,83966.0,5e-07]
[1741834727983,0.43142954,83967.0,83966.0,5e-07]
[1741834728160,0.43242954,83967.0,83966.0,5e-07]
[1741834728357,0.44433854,83967.0,83966.0,5e-07]
[1741834728540,0.46300136,83967.0,83966.0,5e-07]
[1741834729080,0.45109236,83967.0,83966.0,5e-07]
[1741834729272,0.46300136,83967.0,83966.0,5e-07]
[1741834729474,0.04219236,83967.0,83966.0,0.3333005]
[1741834729684,0.04219236,83967.0,83966.0,0.0832005]
[1741834730208,0.04219236,83967.0,83966.0,0.0951095]
[1741834730363,0.04219236,83967.0,83966.0,0.0832005]
[1741834730960,0.01907907,83967.0,83966.0,0.0951095]
[1741834731163,0.01907907,83967.0,83966.0,0.0832005]
[1741834731618,0.01907907,83967.0,83966.0,5e-07]
[1741834731619,0.03098807,83967.0,83966.0,5e-07]
[1741834731953,0.01907907,83967.0,83966.0,0.00849361]
[1741834732139,0.01907907,83967.0,83966.0,5e-07]
[1741834732279,0.01907907,83967.0,83966.0,0.00849361]
[1741834732483,0.02041847,83967.0,83966.0,0.0010005]
[1741834732688,0.03232747,83967.0,83966.0,0.00949361]
[1741834732947,0.03232747,83967.0,83966.0,0.0010005]
[1741834733154,0.03232747,83967.0,83966.0,0.00949361]
[1741834733351,0.44460677,83967.0,83966.0,0.0010005]
[1741834734711,0.47887971,83967.0,83966.0,5e-07]
[1741834734910,0.47987971,83967.0,83966.0,5e-07]
[1741834736859,0.44460677,83967.0,83966.0,5e-07]
[1741834737666,0.4632699,83967.0,83966.0,5e-07]
[1741834737868,0.4642699,83967.0,83966.0,5e-07]
[1741834738253,0.4632699,83967.0,83966.0,5e-07]
[1741834738971,0.4652699,83967.0,83966.0,5e-07]
[1741834739220,0.4642699,83967.0,83966.0,5e-07]
[1741834739454,0.4632699,83967.0,83966.0,5e-07]
[1741834739673,0.4513609,83967.0,83966.0,0.00849361]
[1741834739898,0.4533609,83967.0,83966.0,0.0119095]
[1741834740109,0.4533609,83967.0,83966.0,0.00849361]
[1741834740760,0.4523609,83967.0,83966.0,0.00849361]
[1741834741390,0.4503609,83967.0,83966.0,0.00849361]
[1741834741775,0.4513609,83967.0,83966.0,0.00849361]
[1741834741985,0.48670522,83967.0,83966.0,0.00849361]
[1741834742410,0.07780522,83967.0,83966.0,0.00849361]
[1741834742623,0.07780522,83967.0,83966.0,0.02040261]
[1741834743198,0.07780522,83967.0,83966.0,0.00849361]
[1741834743358,0.07780522,83967.0,83966.0,0.02040261]
[1741834743563,0.02379777,83967.0,83966.0,0.02040261]
[1741834744720,0.00075565,83967.0,83966.0,0.02040261]
[1741834745101,0.00075565,83967.0,83966.0,0.0215934]
[1741834746034,0.00075565,83967.0,83966.0,0.02040261]
[1741834746622,0.00175565,83967.0,83966.0,0.02040261]
[1741834749986,0.00175565,83967.0,83966.0,0.0441697]
[1741834755669,0.00175565,83967.0,83966.0,0.04536044]
[1741834756135,0.00175565,83967.0,83966.0,0.0441697]
[1741834756462,0.00175565,83967.0,83966.0,0.04536043]
[1741834756600,0.00175565,83967.0,83966.0,1.54536043]
[1741834756800,0.00175565,83967.0,83966.0,1.5441697]
[1741834757474,0.00275565,83967.0,83966.0,1.5441697]
[1741834759218,0.00275565,83967.0,83966.0,0.0441697]
[1741834759423,0.00275565,83967.0,83966.0,0.04536044]
[1741834759578,0.00275565,83967.0,83966.0,0.0441697]
[1741834760365,0.00275565,83967.0,83966.0,0.1895297]
[1741834762405,0.00275565,83967.0,83966.0,0.0322607]
[1741834762596,0.25285265,83967.0,83966.0,0.00849361]
[1741834762712,0.79285265,83967.0,83966.0,0.00849361]
[1741834763116,0.81496342,83967.0,83966.0,5e-07]
[1741834763538,0.81396342,83967.0,83966.0,5e-07]
[1741834765256,0.81596342,83967.0,83966.0,5e-07]
[1741834765700,0.83362672,83967.0,83966.0,5e-07]
[1741834766280,0.86900752,83967.0,83966.0,5e-07]
[1741834767012,0.87000752,83967.0,83966.0,5e-07]
[1741834773018,0.88105889,83967.0,83966.0,5e-07]
[1741834773622,0.83115889,83967.0,83966.0,5e-07]
[1741834773832,0.74995889,83967.0,83966.0,5e-07]
[1741834774036,0.51177089,83967.0,83966.0,5e-07]
[1741834774254,0.51177089,83967.0,83966.0,0.0119095]
[1741834774255,0.48119859,83967.0,83966.0,0.0119095]
[1741834774448,0.47014722,83967.0,83966.0,5e-07]
[1741834774789,0.06124722,83967.0,83966.0,5e-07]
[1741834774945,0.06124722,83967.0,83966.0,0.01989499]
[1741834775126,0.06124722,83967.0,83966.0,0.0119095]
[1741834775325,0.06124722,83967.0,83966.0,0.01989499]
[1741834775768,0.02386642,83967.0,83966.0,0.01989499]
[1741834776126,0.02386642,83967.0,83966.0,0.00898599]
[1741834776330,0.02286642,83967.0,83966.0,0.00898599]
[1741834776529,0.02286642,83967.0,83966.0,0.01098599]
[1741834777157,0.0415284,83967.0,83966.0,0.01098599]
[1741834780071,0.0415284,83967.0,83966.0,0.02289499]
[1741834780282,0.0534374,83967.0,83966.0,0.01098599]
[1741834780901,0.0534374,83967.0,83966.0,0.0030005]
[1741834781471,0.0534374,83967.0,83966.0,0.01115531]
[1741834782254,0.08879259,83967.0,83966.0,0.01115531]
[1741834782686,0.08879259,83967.0,83966.0,0.0030005]
[1741834783023,0.07688359,83967.0,83966.0,0.0030005]
[1741834783355,0.08879259,83967.0,83966.0,0.01115531]
[1741834783731,0.08879259,83967.0,83966.0,0.0030005]
[1741834783903,0.07688359,83967.0,83966.0,0.0030005]
[1741834784339,0.08879259,83967.0,83966.0,0.01115531]
[1741834784548,0.08879259,83967.0,83966.0,0.0030005]
[1741834784706,0.08879259,83967.0,83966.0,0.01115531]
[1741834784922,0.08879259,83967.0,83966.0,0.0030005]
[1741834790707,0.07688359,83967.0,83966.0,0.0030005]
[1741834790841,0.32698059,83967.0,83966.0,0.0030005]
[1741834791042,0.32698059,83967.0,83966.0,0.01115531]
[1741834792294,0.32698059,83967.0,83966.0,0.0030005]
[1741834800383,0.07688359,83967.0,83966.0,0.0149095]
[1741834800713,0.05822161,83967.0,83966.0,0.0149095]
[1741834800890,0.05822161,83967.0,83966.0,0.01610031]
[1741834802057,0.05822161,83967.0,83966.0,0.01510031]
[1741834802260,0.05822161,83967.0,83966.0,0.15890465]
[1741834802638,0.05822161,83967.0,83966.0,0.15690465]
[1741834802839,0.05822161,83967.0,83966.0,0.49883141]
[1741834803138,0.05822161,83967.0,83966.0,0.4976406]
[1741834803344,0.00075565,83967.0,83966.0,1.96241384]
[1741834803708,0.00075565,83967.0,83966.0,1.96541384]
[1741834803915,0.00075565,83967.0,83966.0,1.74457969]
[1741834804326,0.00175565,83967.0,83966.0,1.74857969]
[1741834804510,0.00275565,83967.0,83966.0,1.75557969]
[1741834804712,0.00275565,83967.0,83966.0,1.98057969]
[1741834804915,6.5e-07,83967.0,83966.0,2.03017969]
[1741834805120,6.5e-07,83967.0,83966.0,2.06738485]
[1741834805697,0.03542413,83982.0,83981.0,0.450056]
[1741834805926,0.03542413,83982.0,83981.0,0.81647819]
[1741834805927,1e-08,83982.0,83981.0,0.81647819]
[1741834806341,0.0002994,83987.0,83986.0,0.27504]
[1741834806523,0.0002994,83987.0,83986.0,1.27632219]
[1741834806722,0.0002994,83987.0,83986.0,1.31247829]
[1741834807084,0.0002994,83987.0,83986.0,1.27532219]
[1741834807286,0.0002994,83987.0,83986.0,1.27432219]
[1741834807712,0.0012994,83987.0,83986.0,1.28132219]
[1741834808049,0.0012994,83987.0,83986.0,1.30551858]
[1741834808381,0.0002994,83987.0,83986.0,1.29851858]
[1741834808727,0.0012994,83987.0,83986.0,1.30551858]
[1741834809306,0.0012994,83987.0,83986.0,2.00551858]
[1741834810425,0.0012994,83987.0,83986.0,2.01251858]
[1741834810634,0.01865412,84007.0,84006.0,0.249981]
[1741834810836,0.02404679,84047.0,84025.0,0.249925]
[1741834810837,0.0764392,84031.0,84025.0,0.249925]
[1741834811265,0.0003392,84031.0,84030.0,0.24991]
[1741834811443,0.01864924,84026.0,84024.0,0.011901]
[1741834811868,0.01864924,84026.0,84025.0,0.011901]
[1741834812437,0.0003392,84031.0,84030.0,0.0119]
[1741834812641,0.0003392,84031.0,84030.0,0.02386835]
[1741834812642,0.0004641,84031.0,84030.0,0.02386835]
[1741834812838,0.0004641,84031.0,84030.0,0.01308989]
[1741834813041,0.00036457,84031.0,84030.0,0.25109989]
[1741834813341,0.00036457,84031.0,84030.0,0.24991]
[1741834813581,0.00036457,84031.0,84030.0,0.25491]
[1741834813786,0.00036457,84031.0,84030.0,0.26663927]
[1741834814127,0.00036457,84031.0,84030.0,0.01172927]
[1741834814308,0.01226457,84031.0,84030.0,0.01872927]
[1741834814543,0.08916457,84031.0,84030.0,0.007]
[1741834814695,0.00036457,84031.0,84030.0,0.0189]
[1741834815182,0.00036457,84031.0,84029.0,0.0117735]
[1741834815376,0.00036457,84031.0,84027.0,0.00905945]
[1741834815377,0.0119,84030.0,84027.0,0.00905945]
[1741834815597,0.00036457,84031.0,84030.0,0.003]
[1741834816369,0.01901222,84031.0,84030.0,0.003]
[1741834816783,0.01901222,84031.0,84029.0,0.01212136]
[1741834817153,0.01901222,84031.0,84029.0,0.004]
[1741834817561,0.01901222,84031.0,84030.0,0.00905768]
[1741834817761,0.01901222,84031.0,84030.0,0.02095768]
[1741834818589,0.00036457,84031.0,84030.0,0.14089987]
[1741834819023,0.00036457,84031.0,84030.0,0.14508964]
[1741834819440,0.00036457,84031.0,84030.0,0.14389987]
[1741834820193,0.00036457,84031.0,84030.0,0.14589987]
[1741834820578,0.01435061,84042.0,84037.0,0.249888]
[1741834820757,0.01435061,84042.0,84038.0,0.00804555]
[1741834820963,0.01435061,84042.0,84037.0,0.395008]
[1741834821163,0.01435061,84042.0,84038.0,0.00804555]
[1741834821368,0.237979,84041.0,84037.0,0.14512]
[1741834821569,0.249877,84041.0,84038.0,0.00804555]
[1741834821794,0.011898,84041.0,84037.0,0.14512]
[1741834822026,0.011898,84041.0,84038.0,0.00804555]
[1741834822228,0.011898,84041.0,84037.0,0.14512]
[1741834822428,0.011898,84041.0,84038.0,0.00804555]
[1741834822650,0.011898,84041.0,84037.0,0.14512]
[1741834822865,0.011898,84041.0,84038.0,0.00804555]
[1741834823060,0.011898,84041.0,84031.0,0.249907]
[1741834823061,0.24991,84030.0,84016.0,0.75604]
[1741834823211,0.0119,84028.0,84024.0,0.14516]
[1741834823413,0.0119,84031.0,84027.0,0.02909232]
[1741834823618,0.0119,84029.0,84027.0,0.02003287]
[1741834824048,0.0119,84028.0,84027.0,0.02003287]
[1741834824250,0.0872,84028.0,84027.0,0.00806223]
[1741834824612,0.011902,84017.0,84006.0,0.14552]
[1741834824794,0.249949,84017.0,84016.0,0.7561649]
[1741834825000,0.249949,84017.0,84016.0,0.76754594]
[1741834826322,0.249949,84017.0,84016.0,0.77354594]
[1741834826529,0.249949,84017.0,84016.0,0.78929255]
[1741834826745,0.011901,84020.0,84016.0,0.78929255]
[1741834826940,0.011902,84018.0,84016.0,0.78929255]
[1741834827142,0.26859978,84017.0,84016.0,0.78929255]
[1741834827533,0.26859978,84017.0,84016.0,0.78329255]
[1741834827851,0.26859978,84017.0,84016.0,0.77929255]
[1741834828054,0.26859978,84017.0,84016.0,0.78429255]
[1741834828261,0.26859978,84017.0,84016.0,0.77254594]
[1741834828666,0.29063492,84017.0,84016.0,0.76771534]
[1741834828864,0.29063492,84017.0,84016.0,0.77371534]